lending/lending_fUSD_20241113
["ID","MTS","AMOUNT","RATE_DAILY","PERIOD"]
[342173450,1731532233357,-1000.0,0.00010835,2]
[342173452,1731532233367,-413.32747368,0.00010841,2]
[342173454,1731532233377,-420.0,0.00010889,2]
[342173456,1731532233387,-4680.33009631,0.00010899,2]
[342173458,1731532233396,-4680.33009631,0.000109,2]
[342173460,1731532233406,-800.0,0.00010912,2]
[342173462,1731532233416,-500.0,0.00010958,2]
[342173464,1731532233426,-500.0,0.00010958,2]
[342173466,1731532233440,-500.0,0.00010958,2]
[342173468,1731532233451,-500.0,0.00010958,2]
[342173471,1731532233461,-500.0,0.00010958,2]
[342173473,1731532233471,-500.0,0.00010958,2]
[342173475,1731532233482,-500.0,0.00010958,2]
[342173477,1731532233492,-500.0,0.00010958,2]
[342173479,1731532233503,-500.0,0.00010958,2]
[342173481,1731532233513,-500.0,0.00010958,2]
[342173483,1731532233523,-500.0,0.00010958,2]
[342173484,1731532233534,-500.0,0.00010958,2]
[342173485,1731532233544,-500.0,0.00010958,2]
[342173486,1731532233555,-500.0,0.00010958,2]
[342173487,1731532233565,-500.0,0.00010958,2]
[342173488,1731532233576,-500.0,0.00010958,2]
[342173489,1731532233587,-500.0,0.00010958,2]
[342173490,1731532233598,-500.0,0.00010958,2]
[342173491,1731532233609,-500.0,0.00010958,2]
[342173492,1731532233618,-500.0,0.00010958,2]
[342173493,1731532233629,-500.0,0.00010958,2]
[342173494,1731532233640,-500.0,0.00010958,2]
[342173495,1731532233651,-500.0,0.00010958,2]
[342173497,1731532233661,-500.0,0.00010958,2]
[342173499,1731532233672,-500.0,0.00010958,2]
[342173501,1731532233683,-500.0,0.00010958,2]
[342173503,1731532233694,-500.0,0.00010958,2]
[342173506,1731532233704,-500.0,0.00010958,2]
[342173508,1731532233714,-500.0,0.00010958,2]
[342173510,1731532233724,-500.0,0.00010958,2]
[342173512,1731532233734,-500.0,0.00010958,2]
[342173514,1731532233744,-500.0,0.00010958,2]
[342173516,1731532233754,-500.0,0.00010958,2]
[342173518,1731532233764,-500.0,0.00010958,2]
[342173520,1731532233774,-500.0,0.00010958,2]
[342173522,1731532233785,-500.0,0.00010958,2]
[342173524,1731532233795,-500.0,0.00010958,2]
[342173526,1731532233805,-500.0,0.00010958,2]
[342173528,1731532233815,-500.0,0.00010958,2]
[342173530,1731532233825,-500.0,0.00010958,2]
[342173532,1731532233835,-500.0,0.00010958,2]
[342173534,1731532233845,-500.0,0.00010958,2]
[342173536,1731532233855,-500.0,0.00010958,2]
[342173538,1731532233865,-500.0,0.00010958,2]
[342173540,1731532233875,-500.0,0.00010958,2]
[342173542,1731532233885,-500.0,0.00010958,2]
[342173544,1731532233896,-600.67024923,0.00010958,2]
[342173546,1731532233906,-500.0,0.00010958,2]
[342173548,1731532233917,-500.0,0.00010958,2]
[342173550,1731532233926,-500.0,0.00010958,2]
[342173552,1731532233937,-500.0,0.00010958,2]
[342173554,1731532233948,-500.0,0.00010958,2]
[342173556,1731532233958,-500.0,0.00010958,2]
[342173558,1731532233969,-500.0,0.00010958,2]
[342173560,1731532233979,-500.0,0.00010958,2]
[342173562,1731532233990,-500.0,0.00010958,2]
[342173565,1731532234003,-500.0,0.00010958,2]
[342173566,1731532234016,-500.0,0.00010958,2]
[342173568,1731532234027,-312.81577871,0.00010958,2]
[342173571,1731532234038,-450.0,0.00010958,2]
[342173573,1731532234049,-503.93558276,0.00010958,2]
[342173574,1731532234059,-503.93558276,0.00010958,2]
[342173576,1731532234069,-503.93558276,0.00010958,2]
[342173578,1731532234083,-500.0,0.00010958,2]
[342173580,1731532234093,-369.97739312,0.00010958,2]
[342173583,1731532234104,-601.53583459,0.00010958,2]
[342173585,1731532234116,-500.0,0.00010958,2]
[342173587,1731532234127,-500.0,0.00010958,2]
[342173589,1731532234138,-150.63204381,0.00010958,2]
[342173591,1731532234151,-500.0,0.00010958,2]
[342173593,1731532234162,-387.2155275,0.00010958,2]
[342173595,1731532234172,-404.58603141,0.00010958,2]
[342173597,1731532234182,-500.0,0.00010958,2]
[342173599,1731532234192,-500.0,0.00010958,2]
[342173601,1731532234202,-500.0,0.00010958,2]
[342173603,1731532234214,-597.8754277,0.00010958,2]
[342173605,1731532234224,-1500.0,0.00010958,2]
[342173607,1731532234236,-268.51749507,0.00010958,2]
[342173609,1731532234246,-5600.0,0.00010959,2]
[342173611,1731532234256,-250.0,0.00010959,2]
[342173614,1731532234267,-150.0,0.00010959,2]
[342173616,1731532234276,-585.51,0.00010959,2]
[342173618,1731532234287,-1500.0,0.00010959,2]
[342173620,1731532234297,-811.34,0.00010959,2]
[342173622,1731532234306,-353.01,0.00010959,2]
[342173624,1731532234316,-294.17,0.00010959,2]
[342173626,1731532234326,-3000.0,0.0001106,2]
[342173628,1731532234337,-680.72930077,0.00011098,2]
[342173630,1731532234347,-1000.0,0.00011098,2]
[342173632,1731532234357,-171.25380473,0.000111,2]
[342173634,1731532234368,-413.32747368,0.00011219,2]
[342173636,1731532234379,-4680.33009631,0.00011233,2]
[342173638,1731532234389,-1000.0,0.00011262,2]
[342173640,1731532234399,-586.78574312,0.00011262,2]
[342173642,1731532234409,-413.32747368,0.00011266,2]
[342173644,1731532234420,-5931.0,0.00011313,2]
[342173646,1731532234430,-158.792,0.00011313,2]
[342173648,1731532234441,-13637.0,0.00011313,2]
[342173650,1731532234451,-1159.0,0.00011313,2]
[342173652,1731532234462,-3000.0,0.0001138,2]
[342173654,1731532234472,-585.51,0.00011507,2]
[342173656,1731532234482,-155.1,0.00011562,2]
[342173658,1731532234493,-1063.0,0.00011567,2]
[342173660,1731532234503,-4680.33009631,0.00011567,2]
[342173662,1731532234513,-1105.68501838,0.00011584,2]
[342173664,1731532234524,-1105.68501837,0.00011584,2]
[342173666,1731532234535,-150.0,0.00011614,2]
[342173668,1731532234545,-150.0,0.00011614,2]
[342173670,1731532234556,-166.825,0.00011614,2]
[342173673,1731532234566,-150.449,0.00011614,2]
[342173675,1731532234577,-166.0,0.00011614,2]
[342173677,1731532234588,-290.667,0.00011614,2]
[342173679,1731532234598,-170.108,0.00011614,2]
[342173681,1731532234608,-250.0,0.00011614,2]
[342173683,1731532234618,-248.7,0.00011614,2]
[342173685,1731532234630,-151.196,0.00011614,2]
[342173687,1731532234641,-203.326,0.00011614,2]
[342173689,1731532234651,-206.446,0.00011614,2]
[342173691,1731532234661,-153.149,0.00011614,2]
[342173693,1731532234671,-1255.0,0.00011614,2]
[342173695,1731532234682,-453.0,0.00011614,2]
[342173697,1731532234692,-628.0,0.00011614,2]
[342173699,1731532234703,-279.56,0.00011614,2]
[342173701,1731532234714,-563.0,0.00011614,2]
[342173703,1731532234725,-1991.0,0.00011614,2]
[342173705,1731532234736,-626.657,0.00011614,2]
[342173707,1731532234746,-1924.0,0.00011614,2]
[342173709,1731532234756,-814.0,0.00011614,2]
[342173712,1731532234768,-1259.0,0.00011614,2]
[342173713,1731532234778,-3488.0,0.00011614,2]
[342173716,1731532234788,-3745.0,0.00011614,2]
[342173718,1731532234798,-922.0,0.00011614,2]
[342173719,1731532234808,-314.04096856,0.0001169,2]
[342173722,1731532234819,-214111.7691744,0.000117,2]
[342173724,1731532234830,-171.25380473,0.000117,2]
[342173726,1731532234839,-4680.33009631,0.000119,2]
[342173728,1731532234849,-587.0,0.00011978,2]
[342173730,1731532234860,-1450.0,0.00012,2]
[342173732,1731532234870,-227.7,0.00012033,2]
[342173734,1731532234880,-1000.0,0.00012039,2]
[342173736,1731532234891,-585.51,0.00012055,2]
[342173738,1731532234901,-227.05,0.00012055,2]
[342173740,1731532234911,-1500.0,0.000121,2]
[342173742,1731532234920,-800.0,0.00012124,2]
[342173744,1731532234931,-4680.33009631,0.00012233,2]
[342173746,1731532234941,-168.52,0.00012247,2]
[342173748,1731532234951,-1500.0,0.00012264,2]
[342173750,1731532234960,-118819.05405266,0.0001228,2]
[342173752,1731532234970,-171.25380473,0.000123,2]
[342173754,1731532234980,-43553.63,0.00012329,2]
[342173756,1731532234989,-227.7,0.00012458,2]
[342173757,1731532234999,-174.31697908,0.00012503,2]
[342173759,1731532235013,-1931.41083339,0.00012503,2]
[342173761,1731532235023,-4773.30256562,0.00012503,2]
[342173763,1731532235033,-4680.33009631,0.00012567,2]
[342173765,1731532235045,-244811.81673797,0.000126,2]
[342173767,1731532235055,-585.51,0.00012603,2]
[342173770,1731532235065,-1324.32,0.00012653,2]
[342173772,1731532235076,-1720532.25058295,0.0001269,3]
[342173924,1731532236695,-540568.33454245,0.0001269,3]
[342173926,1731532236706,-1000.0,0.00012699,2]
[342173927,1731532236716,-1931.41083337,0.00012702,2]
[342173930,1731532236727,-4773.30256562,0.00012702,2]
[342173932,1731532236737,-168.52,0.00012752,2]
[342173934,1731532236749,-7448.92,0.00012798,2]
[342173936,1731532236759,-250.0,0.00012877,2]
[342173937,1731532236769,-227.7,0.00012884,2]
[342173940,1731532236780,-823259.0071107,0.00012886,2]
[342173942,1731532236790,-4914.13081646,0.00012888,2]
[342173944,1731532236800,-109824.48408779,0.00012892,2]
[342173946,1731532236810,-189.99,0.00012893,2]
[342173948,1731532236820,-109824.48408779,0.00012897,2]
[342173950,1731532236829,-700.89363635,0.00012898,2]
[342173952,1731532236839,-14347.3780057,0.00012898,2]
[342173953,1731532236848,-1000.0,0.00012899,2]
[342173955,1731532236858,-48629.42050953,0.000129,2]
[342173957,1731532236868,-1359.89696767,0.000129,2]
[342173959,1731532236878,-171.25380473,0.000129,2]
[342173961,1731532236888,-200.0,0.000129,2]
[342173963,1731532236897,-200.0,0.000129,2]
[342173965,1731532236908,-155.53371702,0.000129,2]
[342173967,1731532236933,-4680.33009631,0.000129,2]
[342173969,1731532236944,-1931.41083337,0.000129,2]
[342173971,1731532236954,-4773.30256562,0.000129,2]
[342173973,1731532236963,-1668.71093778,0.000129,2]
[342173975,1731532236972,-1668.71093778,0.000129,2]
[342173977,1731532236982,-823259.0071107,0.00012901,2]
[342173979,1731532236991,-2261.7809574,0.00012901,2]
[342173981,1731532237002,-4914.13081646,0.00012903,2]
[342173983,1731532237013,-235.71964335,0.00012905,2]
[342173985,1731532237023,-48629.42050953,0.00012905,2]
[342173987,1731532237032,-4914.13081646,0.00012906,2]
[342173989,1731532237042,-235.71964335,0.00012906,2]
[342173991,1731532237051,-700.89363635,0.00012906,2]
[342173993,1731532237061,-200.0,0.00012907,2]
[342173995,1731532237070,-235.71964335,0.00012911,2]
[342173997,1731532237080,-200.0,0.00012913,2]
[342173999,1731532237089,-2261.7809574,0.00012913,2]
[342174001,1731532237098,-214692.46162883,0.00012915,2]
[342174110,1731532238292,-245.14,0.00010959,2]
[342174113,1731532238302,-2192.76,0.00012915,2]
[342174127,1731532238422,-15823.3031551,0.00012915,2]
[342174130,1731532238454,-38964.71653223,0.00012915,2]
[342174133,1731532238467,-266.46534946,0.00012915,2]
[342174141,1731532238538,-5251.54547514,0.00012915,2]
[342174143,1731532238550,-889.21833,0.00012915,2]
[342174151,1731532238616,-545178.53663994,0.00012915,2]
[342174153,1731532238626,-235.71964335,0.00012916,2]
[342174155,1731532238635,-823259.0071107,0.00012917,2]
[342174157,1731532238645,-2261.7809574,0.00012917,2]
[342174159,1731532238655,-109824.48408779,0.00012919,2]
[342174161,1731532238666,-109824.48408779,0.00012923,2]
[342174163,1731532238676,-4914.13081646,0.00012924,2]
[342174165,1731532238687,-48629.42050953,0.00012925,2]
[342174166,1731532238709,-4914.13081646,0.00012926,2]
[342174168,1731532238719,-235.71964335,0.00012927,2]
[342174171,1731532238730,-48629.42050953,0.00012927,2]
[342174172,1731532238739,-823259.0071107,0.00012929,2]
[342174210,1731532239099,-2261.7809574,0.0001293,2]
[342174212,1731532239110,-200.0,0.0001293,2]
[342174214,1731532239119,-2261.7809574,0.00012931,2]
[342174216,1731532239129,-700.89363635,0.00012931,2]
[342174218,1731532239138,-700.89363635,0.00012932,2]
[342174219,1731532239149,-14347.3780057,0.00012933,2]
[342174220,1731532239158,-200.0,0.00012933,2]
[342174221,1731532239168,-14347.3780057,0.00012936,2]
[342174222,1731532239179,-14347.3780057,0.00012939,2]
[342174223,1731532239201,-14347.3780057,0.00012941,2]
[342174224,1731532239211,-109824.48408779,0.00012941,2]
[342174225,1731532239221,-48629.42050953,0.00012943,2]
[342174226,1731532239231,-200.0,0.00012945,2]
[342174228,1731532239241,-700.89363635,0.00012947,2]
[342174230,1731532239250,-2304012.11675783,0.00013,2]
[342174233,1731532239275,-37111.36695662,0.00013,2]
[342174236,1731532239295,-10620.54655105,0.00013,2]
[342174334,1731532240270,-313.78799327,0.00013,2]
[342174344,1731532240359,-2998.0110708,0.00013,2]
[342174346,1731532240377,-2224.48395441,0.00013,2]
[342174354,1731532240455,-8994.81314791,0.00013,2]
[342174357,1731532240468,-1083.36928539,0.00013,2]
[342174359,1731532240481,-515.15467415,0.00013,2]
[342174361,1731532240493,-572.415,0.00013,2]
[342174363,1731532240506,-1345.58424,0.00013,2]
[342174366,1731532240517,-10735.37630367,0.00013,2]
[342174508,1731532242548,-3277.43258729,0.00013,2]
[342174517,1731532242633,-581.6816005,0.00013,2]
[342174591,1731532243273,-1001.33457495,0.00013,2]
[342174595,1731532243285,-15236.58360252,0.00013,2]
[342174598,1731532243297,-2997.01921037,0.00013,2]
[342174600,1731532243308,-1743.00298331,0.00013,2]
[342174608,1731532243356,-204.29,0.00010959,2]
[342174610,1731532243365,-22379.70999998,0.00013,2]
[342174613,1731532243389,-314.80581843,0.00013,2]
[342174615,1731532243400,-4331.0,0.00013,2]
[342174622,1731532243448,-147173.59029226,0.00013,2]
[342174624,1731532243459,-3258.52100198,0.00013,2]
[342174641,1731532243603,-680.05553384,0.00013,2]
[342174643,1731532243614,-10838.838325,0.00013,2]
[342174900,1731532246294,-13255.10389189,0.00013,2]
[342174903,1731532246306,-4450.0,0.00013,2]
[342174906,1731532246317,-1673.64213555,0.00013,2]
[342174911,1731532246331,-912.66461157,0.00013,2]
[342174922,1731532246391,-25147.19999971,0.00013,2]
[342174925,1731532246407,-178622.44115378,0.00013,2]
[342174934,1731532246491,-22257.5,0.00013,2]
[342174951,1731532246642,-984.61803946,0.00013,2]
[342174954,1731532246654,-610.90138259,0.00013,2]
[342174956,1731532246665,-337.88500284,0.00013,2]
[342175057,1731532322595,253.9,0.00016658,30]
[342175058,1731532724493,-1174.33,9.166e-05,2]
[342175059,1731532733687,-150.99,9.709e-05,2]
[342175060,1731532862488,-1.58,9.709e-05,2]
[342175061,1731532862513,-388.64,9.709e-05,3]
[342175062,1731532862537,-152.57,9.719e-05,2]
[342175063,1731532862561,-152.57,9.728e-05,2]
[342175064,1731532862585,-152.57,9.738e-05,2]
[342175065,1731532862609,-152.57,9.748e-05,2]
[342175066,1731532862634,-152.57,9.757e-05,2]
[342175067,1731532862663,-283.7136,9.8e-05,2]
[342175068,1731532862686,-2066.8964,9.89e-05,2]
[342175080,1731533371065,241.2,0.00016658,30]
[342175104,1731533432938,-500.0,8.51e-05,2]
[342175105,1731533432953,-499.0,8.51e-05,2]
[342175106,1731533432963,-300.0,9.889e-05,2]
[342175107,1731533432972,-3145.7217,9.89e-05,2]
[342175108,1731533432984,-6605.63807257,9.89e-05,2]
[342175109,1731533432995,-1255.36543415,9.89e-05,2]
[342175110,1731533433004,-109.88686585,9.899e-05,2]
[342175111,1731533433016,-1275.20813415,9.899e-05,2]
[342175112,1731533433026,-1569.2611,9.9e-05,2]
[342175113,1731533433035,-5049.07309828,9.9e-05,2]
[342175114,1731533433045,-505.7186148,9.973e-05,2]
[342175115,1731533433055,-405.53905277,9.973e-05,2]
[342175116,1731533433067,-94.46094723,9.973e-05,2]
[342175117,1731533433076,-1599.11875074,9.98e-05,2]
[342175118,1731533433088,-2481.6891875,9.98e-05,2]
[342175119,1731533433098,-150.0,9.999e-05,2]
[342175120,1731533433108,-174343.00678291,0.0001,2]
[342175121,1731533433119,-2648.90724,0.0001,2]
[342175122,1731533433839,-1115.61,8.427e-05,2]
[342175123,1731533433848,-500768.8368058,0.0001,2]
[342175124,1731533433939,-1533.47990037,0.0001,2]
[342175387,1731533437429,-666.82,0.0001,2]
[342175388,1731533437442,-617.40845223,0.0001,2]
[342175389,1731533437754,-54877.72074932,0.0001,2]
[342175390,1731533437796,-904695.42364363,0.0001,2]
[342175391,1731533437808,-1333.19958,0.0001,2]
[342175392,1731533437823,-1556.38637894,0.0001,2]
[342175393,1731533437834,-1180.33482069,0.0001,2]
[342175394,1731533437845,-887.53665,0.0001,2]
[342175395,1731533437856,-73987.968514,0.0001,2]
[342175397,1731533437867,-1563.15,0.0001,2]
[342175400,1731533437887,-2824.32655856,0.0001,2]
[342175402,1731533437899,-5821.00274547,0.0001,2]
[342175404,1731533437910,-8487.63695533,0.0001,2]
[342175406,1731533437921,-4072.53446532,0.0001,2]
[342175409,1731533437936,-3566.95188791,0.0001,2]
[342175412,1731533437959,-29711511.457952,0.0001,2]
[342175415,1731533437979,-889.02,0.0001,2]
[342175417,1731533437991,-1061.37020414,0.0001,2]
[342175419,1731533438002,-263.61513304,0.0001,2]
[342175421,1731533438013,-1327.13555,0.0001,2]
[342175483,1731533439467,-4107.68045113,0.0001,2]
[342175485,1731533439481,-2749.95193684,0.0001,2]
[342175487,1731533439493,-665.01529094,0.0001,2]
[342175497,1731533439576,-475.38104706,0.0001,2]
[342175499,1731533439587,-944.43499998,0.0001,2]
[342175501,1731533439598,-278.10229034,0.0001,2]
[342175503,1731533439609,-1158.63225037,0.0001,2]
[342175505,1731533439620,-833.3,0.0001,2]
[342175508,1731533439631,-370.9113408,0.0001,2]
[342175510,1731533439646,-3624.14443863,0.0001,2]
[342175526,1731533439790,-1000.0,0.0001,2]
[342175528,1731533439803,-2725.0,0.0001,2]
[342175541,1731533439913,-17687.76476662,0.0001,2]
[342175543,1731533439925,-1763.9622,0.0001,2]
[342175801,1731533442611,-5633.10000002,0.0001,2]
[342175803,1731533442623,-950.0,0.0001,2]
[342175805,1731533442635,-898.73621536,0.0001,2]
[342175807,1731533442646,-17419.59999889,0.0001,2]
[342175808,1731533442657,-521.51476816,0.0001,2]
[342175809,1731533442668,-41019.84602597,0.0001,2]
[342175810,1731533442680,-166754.37050849,0.0001,2]
[342175812,1731533442699,-12140.06795337,0.0001,2]
[342175813,1731533442721,-6013.24000012,0.0001,2]
[342175814,1731533442753,-841.85804,0.0001,2]
[342175815,1731533442765,-367.3295172,0.0001,2]
[342175816,1731533442776,-2000.0,0.0001,2]
[342175817,1731533442806,-2003.58444586,0.0001,2]
[342175818,1731533442832,-2078.8168356,0.0001,2]
[342175819,1731533442845,-943.83705,0.0001,2]
[342175820,1731533442857,-5681.58639735,0.0001,2]
[342175821,1731533442870,-7324.10657417,0.0001,2]
[342175835,1731533445475,-1417.77224314,0.0001,2]
[342175836,1731533445486,-176546.97506064,0.0001,2]
[342175837,1731533445573,-1838.1058427,0.0001,2]
[342175838,1731533445585,-2205.0,0.0001,2]
[342175839,1731533445597,-466.36847929,0.0001,2]
[342175840,1731533445608,-440.87181767,0.0001,2]
[342175841,1731533445618,-22007.5,0.0001,2]
[342175842,1731533445629,-1686.0802912,0.0001,2]
[342175843,1731533445695,-89000.00000001,0.0001,2]
[342175844,1731533445706,-7133.47003221,0.0001,2]
[342175845,1731533445738,-123422.02372229,0.0001,2]
[342175846,1731533445747,-310.528289,0.00010157,2]
[342175847,1731533445757,-180.62,0.00010257,2]
[342175848,1731533445767,-250.0,0.00010359,2]
[342175849,1731533445776,-161.81,0.00010415,2]
[342175850,1731533445786,-208.12301289,0.00010521,2]
[342175851,1731533445795,-1115.61,0.00010691,2]
[342175853,1731533445804,-1760.68,0.00010752,2]
[342175855,1731533445813,-150.0,0.000108,2]
[342175857,1731533445823,-420.0,0.00010878,2]
[342175859,1731533445833,-28260.8259517,0.00010899,2]
[342175860,1731533445842,-154.13505861,0.00010958,2]
[342175862,1731533445851,-500.0,0.00010958,2]
[342175864,1731533445860,-605.0437987,0.00010958,2]
[342175865,1731533445869,-500.0,0.00010958,2]
[342175866,1731533445878,-500.0,0.00010958,2]
[342175867,1731533445887,-308.58078677,0.00010958,2]
[342175868,1731533445896,-500.0,0.00010958,2]
[342175869,1731533445905,-150.0,0.00010959,2]
[342175870,1731533445914,-325.33,0.00010959,2]
[342175871,1731533445923,-271.1,0.00010959,2]
[342175872,1731533445932,-225.92,0.00010959,2]
[342175873,1731533445941,-188.27,0.00010959,2]
[342175874,1731533445950,-156.89,0.00010959,2]
[342175875,1731533445964,-784.47,0.00010959,2]
[342175876,1731533445974,-255.0,0.00010999,2]
[342175877,1731533445983,-231.82,0.00011196,2]
[342175878,1731533445992,-150.99,0.00011196,2]
[342175879,1731533446001,-231.82,0.00011199,2]
[342175880,1731533446010,-231.82,0.00011202,2]
[342175881,1731533446019,-231.82,0.00011205,2]
[342175882,1731533446029,-231.82,0.00011208,2]
[342175883,1731533446038,-1000.0,0.0001121,2]
[342175884,1731533446047,-231.82,0.0001121,2]
[342175885,1731533446056,-231.82,0.00011213,2]
[342175886,1731533446065,-231.82,0.00011216,2]
[342175887,1731533446074,-227.6,0.00011218,2]
[342175888,1731533446083,-231.82,0.00011219,2]
[342175889,1731533446092,-231.82,0.00011222,2]
[342175890,1731533446101,-231.82,0.00011225,2]
[342175891,1731533446110,-231.82,0.00011228,2]
[342175892,1731533446119,-231.82,0.00011231,2]
[342175893,1731533446127,-231.82,0.00011234,2]
[342175894,1731533446136,-231.82,0.00011237,2]
[342175895,1731533446146,-159.88,0.00011238,2]
[342175896,1731533446155,-231.82,0.0001124,2]
[342175897,1731533446164,-768.98,0.00011242,2]
[342175898,1731533446173,-231.82,0.00011243,2]
[342175899,1731533446182,-231.82,0.00011246,2]
[342175900,1731533446192,-231.82,0.00011249,2]
[342175901,1731533446201,-231.82,0.00011252,2]
[342175902,1731533446213,-250.0,0.00011403,2]
[342175903,1731533446223,-250.0,0.00011435,2]
[342175904,1731533446232,-271.3353845,0.00011644,2]
[342175905,1731533446242,-1000.0,0.00011644,2]
[342175906,1731533446251,-628.0,0.00011645,2]
[342175907,1731533446260,-563.0,0.00011645,2]
[342175908,1731533446269,-559.0,0.00011645,2]
[342175909,1731533446278,-1923.0,0.00011645,2]
[342175910,1731533446287,-1259.0,0.00011645,2]
[342175911,1731533446296,-814.0,0.00011645,2]
[342175912,1731533446305,-3487.0,0.00011645,2]
[342175913,1731533446315,-922.0,0.00011645,2]
[342175914,1731533446324,-3745.0,0.00011645,2]
[342175915,1731533446333,-453.0,0.00011645,2]
[342175916,1731533446342,-150.0,0.00011645,2]
[342175917,1731533446352,-768.094,0.00011645,2]
[342175918,1731533446361,-5930.0,0.00011645,2]
[342175919,1731533446370,-13637.0,0.00011645,2]
[342175920,1731533446379,-1255.0,0.00011645,2]
[342175921,1731533446389,-168.52,0.00011675,2]
[342175922,1731533446400,-10892.25333243,0.000117,2]
[342175923,1731533446409,-227.6,0.00011779,2]
[342175924,1731533446419,-587.0,0.00011966,2]
[342175925,1731533446427,-23900.0,0.00011993,2]
[342175926,1731533446436,-1450.0,0.00012,2]
[342175927,1731533446446,-153.45,0.00012033,2]
[342175928,1731533446455,-987.16,0.00012055,2]
[342175929,1731533446466,-433.0,0.00012099,2]
[342175930,1731533446476,-300.0,0.00012192,2]
[342175931,1731533446485,-10025.41473544,0.00012197,2]
[342175932,1731533446494,-10025.41473535,0.00012275,2]
[342175933,1731533446503,-58306.7763859,0.0001228,2]
[342175934,1731533446512,-227.6,0.0001234,2]
[342175935,1731533446521,-10025.41473535,0.00012353,2]
[342175936,1731533446530,-10025.41473535,0.00012431,2]
[342175937,1731533446539,-153.45,0.00012458,2]
[342175938,1731533446548,-516.19538723,0.000125,2]
[342175939,1731533446558,-10025.41473535,0.00012509,2]
[342175940,1731533446568,-324.32,0.00012553,2]
[342175941,1731533446577,-150.0,0.00012553,2]
[342175942,1731533446586,-432.63,0.00012572,2]
[342175943,1731533446595,-432.63,0.00012572,2]
[342175944,1731533446604,-432.63,0.00012572,2]
[342175945,1731533446613,-864.96,0.00012572,2]
[342175946,1731533446622,-10025.41473535,0.00012588,2]
[342175947,1731533446632,-1000.0,0.00012611,2]
[342175948,1731533446642,-168.52,0.00012639,2]
[342175949,1731533446651,-768.98,0.00012648,2]
[342175950,1731533446661,-10025.41473535,0.00012666,2]
[342175951,1731533446671,-1000.0,0.00012686,2]
[342175952,1731533446680,-2500.0,0.00012686,2]
[342175953,1731533446689,-7492.21,0.0001269,2]
[342175954,1731533446698,-32478.2658,0.000127,2]
[342175955,1731533446706,-8146.6769,0.000127,2]
[342175956,1731533446717,-150.0,0.00012717,2]
[342175957,1731533446726,-150.0,0.00012717,2]
[342175958,1731533446735,-150.0,0.00012717,2]
[342175959,1731533446744,-150.0,0.00012717,2]
[342175960,1731533446753,-150.0,0.00012739,2]
[342175961,1731533446762,-150.67,0.00012739,2]
[342175962,1731533446771,-150.0,0.00012739,2]
[342175963,1731533446780,-151.37,0.00012739,2]
[342175964,1731533446790,-150.0,0.00012739,2]
[342175965,1731533446799,-150.0,0.00012739,2]
[342175966,1731533446808,-10025.41473535,0.00012744,2]
[342175967,1731533446818,-5000.0,0.00012791,2]
[342175968,1731533446827,-100000.0,0.000128,2]
[342175969,1731533446836,-487.6669,0.000128,2]
[342175970,1731533446845,-37889.5893,0.000128,2]
[342175971,1731533446854,-10025.41473535,0.00012822,2]
[342175972,1731533446864,-426.41767423,0.00012836,2]
[342175973,1731533446873,-250.0,0.00012877,2]
[342175974,1731533446882,-153.45,0.00012884,2]
[342175975,1731533446892,-887.2663,0.00012891,2]
[342175976,1731533446901,-1069.9128,0.00012891,2]
[342175977,1731533446910,-217673.649,0.00012891,2]
[342175978,1731533446920,-188.38,0.00012893,2]
[342175979,1731533446929,-1000.0,0.00012899,2]
[342175980,1731533446939,-500.0,0.000129,2]
[342175981,1731533446948,-200.0,0.000129,2]